Cogmind - Beta 14 @@@ ROGUE MODE // 2024.11.10 @ 23:46:50 Player: Kate+Gabe4evr Result: Destroyed by 6D-25N(R) with Subdweller Laser Performance ------------- Evolutions (0) 0 Regions Visited (3) 600 Robots Destroyed (17) 85 Value Destroyed (363) 363 Prototype IDs (0) 0 Alien Tech Used (0) 0 Bonus (0) 0 TOTAL SCORE: 1048 Bonus ------- None Cogmind --------- Core Integrity 0/250 Matter 300/300 Energy 250/250 System Corruption 0% Temperature Cool (6) Movement Treading (240) Ox1 Location -10/Subcaves Parts ------- > --- POWER (1) -------- Ion Engine > --- PROPULSION (2) --- Light Treads > --- UTILITY (2) ------ Large Storage Unit > --- WEAPON (2) ------- EM Pulse Gun > --- INVENTORY (15) --- Subdweller Power Source Large Storage Unit Medium Matter Pod (95) Small Laser Small Laser Assault Rifle Flamer Makeshift Sword Peak State ------------ > --- POWER ------------ Ion Engine > --- PROPULSION ------- Compact Wheel Compact Wheel > --- UTILITY ---------- Heat Sink Large Storage Unit > --- WEAPON ----------- Riot Gun Battle Cannon > --- INVENTORY -------- Ion Engine Large Storage Unit Medium Matter Pod EM Pulse Gun Small Laser Small Laser Assault Rifle Grenade Launcher Makeshift Sword [Rating: 11] Favorites ----------- Power Ion Engine Engine Ion Engine Propulsion Compact Wheel Treads Light Treads Wheel Compact Wheel Utility Large Storage Unit Device Heat Sink Storage Large Storage Unit Weapon Battle Cannon Energy Gun Small Laser Ballistic Gun Assault Rifle Ballistic Cannon Battle Cannon Launcher Grenade Launcher Slashing Weapon Makeshift Sword Build | -11 -10 -10 -10 ------- Run | Yrd Mat Min Sub Slots Evolved . | . . . . Power . | . . . . Propulsion . | . . . . Utility . | . . . . Weapon . | . . . . Parts Attached 24 | 6 7 1 10 Power 3 | 1 . . 2 Engine 3 | 1 . . 2 Core . | . . . . Reactor . | . . . . Propulsion 5 | 2 2 . 1 Treads 1 | . . . 1 Leg . | . . . . Wheel 4 | 2 2 . . Hover . | . . . . Flight . | . . . . Utility 3 | 1 2 . . Device 1 | . 1 . . Storage 2 | 1 1 . . Processor . | . . . . Hackware . | . . . . Protection . | . . . . Artifact . | . . . . Weapon 13 | 2 3 1 7 Energy Gun 4 | 1 . . 3 Energy Cannon . | . . . . Ballistic Gun 4 | 1 2 . 1 Ballistic Cannon 2 | . . . 2 Launcher 2 | . 1 . 1 Special Weapon . | . . . . Impact Weapon . | . . . . Slashing Weapon 1 | . . 1 . Piercing Weapon . | . . . . Special Melee Weapon . | . . . . Unidentified Prototypes . | . . . . Parts Lost 9 | . 1 . 8 Power 1 | . . . 1 Propulsion 3 | . 1 . 2 Utility 1 | . . . 1 Weapon 4 | . . . 4 Highest Loss Streak 6 | . 1 . 6 To Critical Strikes . | . . . . Average Slot Usage (%) 80 | . 85 100 75 Engine 12 | . 14 14 12 Treads 5 | . . . 7 Wheel 14 | . 26 28 8 Device 6 | . 2 14 5 Storage 14 | . 14 14 14 Energy Gun 12 | . 14 12 12 Ballistic Gun 5 | . 11 14 1 Ballistic Cannon 7 | . . . 11 Peak Build Rating 11 | 6 7 10 11 Average Rating 7 | 4 6 7 7 On Entrance 5 | . 6 7 10 Naked Turns . | . . . . Heaviest Build 32 | 13 30 30 32 Greatest Support 32 | 32 32 32 32 Greatest Overweight (x) 7 | . 1 . 7 Average Overweight (x) . | . . . . Largest Inventory Capacity 15 | 8 15 15 15 Average Capacity 14 | 6 11 15 15 Most Carried 12 | 2 5 7 12 Average Carried 7 | 1 3 5 8 Final Capacity 15 | 8 15 15 15 Final Carried 8 | 2 5 7 8 Class Distribution -------------------- 100% | Mutant Dominant Class ---------------- Mutant | -10/Materials Mutant | -10/Mines Mutant | -10/Subcaves Resources | -11 -10 -10 -10 ----------- Run | Yrd Mat Min Sub Matter Collected 761 | 175 169 67 350 Remotely . | . . . . Salvage Created 491 | . 256 . 235 Parts 23 | . 14 . 9 Haulers Intercepted . | . . . . Recyclers Shooed 1 | . 1 . . Parts Field Recycled . | . . . . Retrieved Matter . | . . . . Parts Self-Destructed 5 | . . . 5 Prevented . | . . . . Kills | -11 -10 -10 -10 ------- Run | Yrd Mat Min Sub Combat Hostiles Destroyed 14 | . 6 . 8 Guns 5 | . . . 5 Cannons 2 | . . . 2 AOE 7 | . 6 . 1 Classes Destroyed 6 | . 4 . 2 Worker 1 | . 1 . . Recycler 2 | . 2 . . Swarmer 7 | . 3 . 4 Grunt 3 | . 3 . . Sentry 1 | . . . 1 Subdweller 3 | . . . 3 Best Kill Streak 9 | . 9 . 5 Combat Bots Only 5 | . 5 . 5 Max Kills in Single Turn 4 | . 4 . 1 Gunslinging . | . . . . Exploded 4 | . 4 . 1 Melee . | . . . . Uniques/NPCs Destroyed . | . . . . Combat | -11 -10 -10 -10 -------- Run | Yrd Mat Min Sub Hostile Shots Fired 104 | . 23 . 81 Missed 27 | . 9 . 18 Damage Taken 871 | . 202 . 669 Core 269 | . 55 . 214 Absorbed by Shields . | . . . . Core Remaining (%) 100 | 100 . . . Volleys Fired 39 | . 9 2 28 Largest 2 | . 2 1 2 Hottest 89 | . 70 20 89 Shots Fired 65 | . 18 2 45 Gun 30 | . 9 2 19 Cannon 19 | . . . 19 Launcher 16 | . 9 . 7 Special . | . . . . Kinetic 27 | . . 2 25 Thermal 9 | . 9 . . Explosive 16 | . 9 . 7 Electromagnetic 13 | . . . 13 Robot Hit Streak 7 | . 2 . 7 Robot Miss Streak 6 | . 1 . 6 Penetration Max . | . . . . Secondary Targets . | . . . . Shots Hit Robots 26 | . 3 . 23 Core Hits 32 | . 16 . 16 Critical Kills . | . . . . Critical Parts Destroyed . | . . . . Critical Strikes 1 | . . . 1 Blast 1 | . . . 1 Melee Attacks 3 | . . 3 . Impact . | . . . . Slashing 3 | . . 3 . Piercing . | . . . . Sneak Attacks . | . . . . Combat Hostiles . | . . . . Follow-up Attacks . | . . . . Damage Inflicted 1092 | . 563 . 529 Guns 213 | . 34 . 179 Cannons 224 | . . . 224 Explosions 651 | . 525 . 126 Melee . | . . . . Ramming 4 | . 4 . . Kinetic 242 | . . . 242 Thermal 34 | . 34 . . Explosive 651 | . 525 . 126 Electromagnetic 161 | . . . 161 Impact . | . . . . Slashing . | . . . . Piercing . | . . . . Highest Corruption . | . . . . Average Corruption . | . . . . Corruption Purged . | . . . . Corruption Blocked . | . . . . Overload Shots . | . . . . Overflow Damage 41 | . 31 . 10 Projectiles . | . . . . Explosions 41 | . 31 . 10 Melee . | . . . . Knockbacks 1 | . . . 1 Impact . | . . . . Kinetic 1 | . . . 1 Secondary . | . . . . Self-Inflicted Damage 77 | . 47 . 30 Shots 5 | . 3 . 2 Rammed 1 | . 1 . . Targets Rammed 1 | . 1 . . Kicked . | . . . . Crushed . | . . . . Highest Temperature 141 | . 141 . . Average Temperature 77 | . 77 . . Received Heat Transfer 282 | . 66 . 216 Siege Activations . | . . . . Robots Corrupted . | . . . . Combat Hostiles . | . . . . Parts Fried . | . . . . Impact Corruptions . | . . . . Robots Melted . | . . . . Combat Hostiles . | . . . . Parts Melted . | . . . . Heat Transferred 75 | . 75 . . Parts Sabotaged . | . . . . Parts Stolen . | . . . . Parts Stripped . | . . . . Power Chain Reactions 1 | . . . 1 Alert | -11 -10 -10 -10 ------- Run | Yrd Mat Min Sub Peak Influence 180 | . 180 70 . Initial 70 | . . 70 . Average 53 | . 47 70 . Maximum Alert Level . | . . . . Low Security (%) 100 | 100 100 100 . Level 1 . | . . . . Level 2 . | . . . . Level 3 . | . . . . Level 4 . | . . . . Level 5 . | . . . . High Security . | . . . . Max Security . | . . . . Squads Dispatched . | . . . . Investigation . | . . . . Extermination . | . . . . Reinforcement . | . . . . Assault . | . . . . Garrison . | . . . . Intercept . | . . . . Searches Triggered . | . . . . Construction Impeded . | . . . . Haulers Reinforced . | . . . . Active Scanning Responses . | . . . . Cargo Convoy Interrupts . | . . . . Stealth | -11 -10 -10 -10 --------- Run | Yrd Mat Min Sub Distress Signals . | . . . . Communications Jammed . | . . . . Distress Signals . | . . . . Times Spotted 18 | . 6 . 12 Peak Tracking Total 6 | . 6 . 6 Tactical Retreats 2 | . . . 2 Traps | -11 -10 -10 -10 ------- Run | Yrd Mat Min Sub Traps Triggered 1 | . 1 . . Indirectly . | . . . . Trap Hack Attempts . | . . . . Triggered . | . . . . Disarmed . | . . . . Reprogrammed . | . . . . Reused . | . . . . Traps Extracted . | . . . . Installed . | . . . . Triggered 1 | . . . 1 Machines | -11 -10 -10 -10 ---------- Run | Yrd Mat Min Sub Machines Disabled 2 | . . . 2 Max in Single Turn 2 | . . . 2 Machines Repaired . | . . . . Machines Dismantled . | . . . . Machines Sabotaged . | . . . . Overloaded Fab Kills . | . . . . Hacking | -11 -10 -10 -10 --------- Run | Yrd Mat Min Sub Machines Accessed 1 | . . . 1 Terminals . | . . . . Fabricators . | . . . . Repair Stations . | . . . . Recycling Units . | . . . . Scanalyzers . | . . . . Garrison Access . | . . . . Total Hacks 5 | . . . 5 Successful 5 | . . . 5 Failed . | . . . . Catastrophic . | . . . . Database Lockouts . | . . . . Manual . | . . . . Terminals . | . . . . Fabricators . | . . . . Repair Stations . | . . . . Recycling Units . | . . . . Scanalyzers . | . . . . Garrison Access . | . . . . Terminal Hacks 5 | . . . 5 Record 5 | . . . 5 Fabricator Hacks . | . . . . Repair Station Hacks . | . . . . Recycling Unit Hacks . | . . . . Scanalyzer . | . . . . Garrison Access Hacks . | . . . . Unauthorized Hacks . | . . . . Terminals . | . . . . Fabricators . | . . . . Repair Stations . | . . . . Recycling Units . | . . . . Scanalyzers . | . . . . Garrison Access . | . . . . Data Cores Recovered . | . . . . Used . | . . . . Hacking Detections . | . . . . Full Trace Events . | . . . . Feedback Events . | . . . . Feedback Blocked . | . . . . Robot Schematics Acquired . | . . . . Robots Built . | . . . . Authchips . | . . . . Time . | . . . . Total Robot Build Rating . | . . . . Part Schematics Acquired . | . . . . Parts Built . | . . . . Authchips . | . . . . Time . | . . . . Total Part Build Rating . | . . . . Parts Repaired . | . . . . Time . | . . . . Parts Recycled . | . . . . Recycled Matter . | . . . . Retrieved Matter . | . . . . Retrieved Components . | . . . . Parts Scanalyzed . | . . . . Part Schematics Acquired . | . . . . Parts Damaged . | . . . . Bothacking | -11 -10 -10 -10 ------------ Run | Yrd Mat Min Sub Used RIF Installer . | . . . . Robots Hacked . | . . . . Non-combat . | . . . . Combat . | . . . . Robot Hacks Applied . | . . . . Relay Couplers Released . | . . . . Fabnet Peak Effective % . | . . . . Robots Rewired . | . . . . Allies Hacked . | . . . . Hacks Repelled . | . . . . Allies | -11 -10 -10 -10 -------- Run | Yrd Mat Min Sub Total Allies . | . . . . Largest Group . | . . . . Highest-Rated Group . | . . . . Highest-Rated Ally . | . . . . Total Orders . | . . . . Ally Attacks . | . . . . Total Damage . | . . . . Kills . | . . . . Allies Corrupted . | . . . . Allies Melted . | . . . . Intel | -11 -10 -10 -10 ------- Run | Yrd Mat Min Sub Robot Analysis Total . | . . . . Derelict Logs Recovered 2 | . . 2 . Drone Launches . | . . . . Drone Recoveries . | . . . . Exploration | -11 -10 -10 -10 ------------- Run | Yrd Mat Min Sub Turns Passed 1293 | 41 188 201 863 Spaces Moved 817 | 32 144 178 463 Core 7 | 3 . . 4 Treads 189 | . . . 189 Legs . | . . . . Wheels 621 | 29 144 178 270 Hover . | . . . . Flight . | . . . . Fastest Speed 50 | 50 100 100 100 Average Speed 133 | 95 100 100 159 Slowest Speed 400 | 100 115 100 400 Overloaded Moves . | . . . . Propulsion Burnouts . | . . . . Robots Hopped . | . . . . Cave-ins Triggered . | . . . . Exploration Rate (%) 30 | 3 33 52 35 Regions Visited 3 Branch Regions 2 Pre-discovered Areas 2 | . . 1 1 Known Exits Taken . | . . . . Unknown Exits Taken 3 | 1 1 1 . Scrap Searched 5 | . . 1 4 Spaces Dug 21 | . . . 21 Terrain Destroyed 88 | . 42 . 46 Melee . | . . . . Projectile . | . . . . AOE 88 | . 42 . 46 Terrain Rammed . | . . . . Walls Destroyed . | . . . . Machines Disabled . | . . . . Actions | -11 -10 -10 -10 --------- Run | Yrd Mat Min Sub Total 940 | 39 166 195 540 Wait 43 | . 1 10 32 Move 814 | 31 143 177 463 Hop . | . . . . Pick Up 11 | 2 3 2 4 Fast Attach 13 | 6 5 . 2 Attach 6 | . . . 6 Detach 4 | . 1 . 3 Swap 5 | . 2 1 2 Drop 1 | . 1 . . Fire 39 | . 9 2 28 Melee 3 | . . 3 . Ram 1 | . 1 . . Kick . | . . . . Crush . | . . . . Escape Stasis . | . . . . Rewire . | . . . . Trap . | . . . . Miscellaneous . | . . . . Route ------- -11/Scrapyard -10/Materials (discovered 2 exits: [*Min x2]) -10/Mines -10/Subcaves (discovered 1 exit: *Rec) History --------- Turn | Location | Event 2 | -11/Scrapyard | Met Revision 17 15 | -11/Scrapyard | Discovered new exit (range 15) 42 | -11/Scrapyard | Entered Materials 88 | -10/Materials | Discovered new exit (range 10) 117 | -10/Materials | Discovered new exit (range 8) 230 | -10/Materials | Entered Mines 266 | -10/Mines | Met a Derelict bent on vengeance 314 | -10/Mines | Build established: Mutant 343 | -10/Mines | A weapon hastily lodged in a ceiling crevice suddenly fell to the ground 369 | -10/Mines | Learned location of Mines (-9) 393 | -10/Mines | Assembled infested the area 398 | -10/Mines | Assisted by a Guerilla fighting off Assembled 429 | -10/Mines | Discovered new exit (range 3) 431 | -10/Mines | Entered Subcaves 449 | -10/Subcaves | Visited Clippyterm 452 | -10/Subcaves | Identified exit to Recycling 452 | -10/Subcaves | Learned Research machine intel 649 | -10/Subcaves | Learned location of Zion (-6) 649 | -10/Subcaves | Met a Zionite searching for "candidates" 792 | -10/Subcaves | Core integrity fell below 50% 815 | -10/Subcaves | Ambushed by Subdweller buried in earth 844 | -10/Subcaves | Core integrity fell below 20% 870 | -10/Subcaves | Lost 6 parts (1p1n1u3w) 1294 | -10/Subcaves | Destroyed by 6D-25N(R) with Subdweller Laser Last Messages --------------- 01053_ Acquired 57 matter. 01106_ Searching scrap... 01106_ Found Sub. Monowheel. 01106_ Found Sub. Beam Cannon. 01106_ Found 52 Matter. 01107_ Acquired 52 matter. 01108_ Searching scrap... 01108_ Found Sub. Monowheel. 01108_ Found Flamer. 01108_ Found 70 Matter. 01109_ Acquired 70 matter. 01111_ Searching scrap... 01111_ Found Flamer. 01111_ Found 31 Matter. 01112_ Acquired 31 matter. 01130_ Acquired Flamer. 01143_ Subatomizers dissect the Sub. Beam Cannon. 01162_ Acquired 4 matter. 01166_ Subatomizers dissect the Sub. Beam Cannon. 01290_ Battle Cannon destroyed. Map ----- +----------------------------------------------------+ | ???????????????????????# #### ## ###### # | | ???????????????????????# ## ## ##### | | ?????????????????????### ## ### ## | | ?????????????????????# #?## | | ?????????????????????## #?## | | ??????????????????????## #?# | | ??????????????????????## ### | | ??????????????????????# ### #### | | ??????????????????????# ######## ###### | | ?????????????????????## ##### #??# ## | | ?????????????????????# ## #???# | | ?????????????????????# #???# | | ?????????????????????# #???# | | ?????????????????????## #????# | | ??????????????????????## ### ## ##????## | | ???????????????????????# #?# #??????????## | | ???????????????????????####### #?????##???## | | ????????????????????????????# #?????# #?## | | ?????????????????#########??# ##????## ## | | ????????????????##"" """"#### ##????# | | ????????????????# " """" " ### #???## | | ????????????????#"" " ## # #### | | ????????????????#"""" " ## # ## | | ????????????????# "" "##" # # | | ????????????????# """ ?###R## # ## | | ????????????????#" "??#@ #" #?# | | ????????????????# $??# ### #?## # | | ????????????????# $???# #?# ### ## | | ????????????????# $ ???# # < #?# ### ##? | | ????????????????# ???#####< ### #### ##? | | ?????????????????$ $????????# ## ### ## | | ????????????????????????????## # | | ?????????????????????????????# | | ????????????????????????###### ## | | ?????????????????????#### # ### | | ?????????????????????# ### #### ### | | ?????????????########## ## # # # # ###?# | | ?????????##### # # ##### #=### " | | ?????????# ##??###### # # % "" | | ?????????# #???????### "" | | ?????????# # ## # ##?????????# % "" | | ?????????# ############??????????## %%"" | | ?????????## #?????????????????????# !]## | | ????????## #?????????????????????# &%#??? | | ???????## ##?????????????????????# ###* #??? | | ??????## ##????????????????????## #?? | | ??????# #?????????????????????# ##?? | | ?????## #?????????????????????##### #? | | ###### ###??????????????????????????# # | | ##????????????????????????????% "# | +----------------------------------------------------+ Best States ------------- Heat Dissipation 35 Energy Generation 10 Energy Capacity 250 Matter Stores 300 Matter Capacity 300 Sight Range 16 Terrain Scan Density 10 Evasion (%) 40 Recoil Reduction 1 Item Schematics ----------------- None Robot Schematics ------------------ None Fabricated ------------ Nothing Alien Tech Used ----------------- None Achievements -------------- None Challenges ------------ None Game ------ Seed ScatterMissileMagmablaster Manual? 0 Play Time 00:08:56 Cumulative 66.9 hours Start 2024.11.10 @ 23:39:00 End 2024.11.10 @ 23:46:50 Sessions 1 Manual Loads 0 Difficulty Rogue Special Mode None Game No. 129 Rogue 129 Adventurer 0 Explorer 0 Win Type - Total 1 Types 1/0/0/0/0/0/0/0/0 Lore% 52 Gallery% 55 Achievement% 46 Wizard Run 0 Options --------- Layout 0 ASCII 0 Keyboard 1 Movement Numpad Keybinds 0 Fullscreen 2 Font 24/Terminus Map View 76x50 Zoom Use 0% Tactical HUD 1 Map Filters NONE Filters NONE Steam 1 RUN: f69c1bb3-1c1b-4d24-8ced-3d8f9a4a4049